bitfinex-derivatives/quotes_BTCF0:USTF0_20250121
["timestamp","ask_amount","ask_price","bid_price","bid_amount"]
[1737447622864,0.17493945,102330.0,102320.0,0.70938793]
[1737447623849,0.21407645,102330.0,102320.0,0.70938793]
[1737447624043,0.21407645,102330.0,102320.0,0.67024693]
[1737447624248,0.21407645,102330.0,102320.0,0.30944693]
[1737447624543,0.28086597,102330.0,102320.0,0.30944693]
[1737447624953,0.28086597,102330.0,102320.0,0.09774693]
[1737447625151,0.28086597,102330.0,102310.0,0.4629]
[1737447625152,0.039141,102320.0,102310.0,0.4629]
[1737447625455,0.039141,102320.0,102310.0,0.56062782]
[1737447627750,0.039141,102320.0,102310.0,0.59977282]
[1737447628555,0.52838952,102340.0,102310.0,0.66656234]
[1737447628854,0.039138,102330.0,102320.0,0.399941]
[1737447629552,0.039135,102340.0,102330.0,0.039136]
[1737447629749,0.039135,102340.0,102330.0,0.68062552]
[1737447629952,0.039135,102340.0,102330.0,0.613836]
[1737447630255,0.039135,102340.0,102330.0,0.71156382]
[1737447633357,0.039135,102340.0,102330.0,0.67242782]
[1737447633554,0.039135,102340.0,102330.0,0.71156482]
[1737447633947,0.039135,102340.0,102330.0,0.67242782]
[1737447634154,0.10592452,102340.0,102330.0,0.31162782]
[1737447634453,0.10592452,102340.0,102330.0,0.09772782]
[1737447634657,0.20752452,102340.0,102330.0,0.09772782]
[1737447634858,1.54752452,102340.0,102330.0,0.09772782]
[1737447635163,0.20752452,102340.0,102330.0,0.09772782]
[1737447638363,0.140735,102340.0,102330.0,0.09772782]
[1737447638750,0.20752452,102340.0,102330.0,0.09772782]
[1737447639170,0.039135,102340.0,102330.0,0.49766482]
[1737447639353,0.14565355,102350.0,102340.0,0.039134]
[1737447639560,0.14565355,102350.0,102340.0,0.77572352]
[1737447640062,0.14565355,102350.0,102340.0,0.87344179]
[1737447642561,0.14565355,102350.0,102340.0,0.80665227]
[1737447642762,0.14565355,102350.0,102340.0,0.87344179]
[1737447643171,0.14565355,102350.0,102340.0,0.80665227]
[1737447643472,0.03913,102350.0,102340.0,1.04028051]
[1737447643666,0.039127,102360.0,102350.0,0.039129]
[1737447643862,0.039127,102360.0,102350.0,0.399929]
[1737447644269,0.039127,102360.0,102350.0,0.49763773]
[1737447645396,2.17204282,102380.0,102350.0,0.56442725]
[1737447645565,0.18477255,102380.0,102360.0,0.46671252]
[1737447645771,0.25156207,102380.0,102370.0,0.3608]
[1737447646166,0.25156207,102380.0,102370.0,0.09769918]
[1737447649075,0.61236207,102380.0,102370.0,0.09769918]
[1737447649467,0.25156207,102380.0,102370.0,0.09769918]
[1737447649967,0.039124,102370.0,102350.0,0.60721387]
[1737447650273,0.31451352,102370.0,102360.0,0.09768009]
[1737447650572,0.31451352,102370.0,102350.0,0.60721387]
[1737447650967,0.31451352,102370.0,102360.0,0.09769441]
[1737447651169,0.31451352,102370.0,102350.0,0.60721387]
[1737447651569,0.31451352,102370.0,102360.0,0.09768964]
[1737447651769,0.31451352,102370.0,102350.0,0.60721387]
[1737447652076,0.31451352,102370.0,102360.0,0.09768964]
[1737447652471,0.31451352,102370.0,102350.0,0.60721387]
[1737447652675,0.31451352,102370.0,102360.0,0.09769441]
[1737447653066,0.039126,102360.0,102350.0,0.56808587]
[1737447653271,0.20561552,102360.0,102350.0,8.587e-05]
[1737447653568,0.56641552,102360.0,102350.0,8.587e-05]
[1737447653769,0.20561552,102360.0,102350.0,8.587e-05]
[1737447653979,0.56641552,102360.0,102350.0,8.587e-05]
[1737447654381,0.20561552,102360.0,102350.0,8.587e-05]
[1737447654868,0.63320504,102360.0,102350.0,8.587e-05]
[1737447655972,0.59407904,102360.0,102340.0,0.23362824]
[1737447656172,0.46671952,102350.0,102340.0,0.23362824]
[1737447656375,0.46671952,102350.0,102340.0,0.33132742]
[1737447657071,0.46681701,102350.0,102340.0,0.33132742]
[1737447657266,0.40002749,102350.0,102340.0,0.33132742]
[1737447657863,9.749e-05,102350.0,102340.0,0.73126142]
[1737447658571,9.749e-05,102350.0,102340.0,0.79805094]
[1737447658776,9.749e-05,102350.0,102340.0,0.73126142]
[1737447659173,0.11691586,102350.0,102340.0,0.49763318]
[1737447660277,0.22283538,102350.0,102340.0,0.45849918]
[1737447660574,0.22283538,102350.0,102340.0,0.09769918]
[1737447660779,0.22283538,102350.0,102340.0,0.45849918]
[1737447662569,0.15604586,102350.0,102340.0,0.45849918]
[1737447664170,0.22283538,102350.0,102340.0,0.45849918]
[1737447665474,0.039134,102340.0,102330.0,0.23362824]
[1737447665672,0.67252352,102340.0,102330.0,0.23362824]
[1737447665978,0.67252352,102340.0,102330.0,0.33133697]
[1737447667483,0.399934,102340.0,102330.0,0.33133697]
[1737447668674,0.66240592,102340.0,102330.0,0.09770873]
[1737447669285,0.72919544,102340.0,102330.0,0.09770873]
[1737447670267,0.73843877,102340.0,102330.0,0.09770873]
[1737447672185,0.67164925,102340.0,102330.0,0.09770873]
[1737447673278,0.73843877,102340.0,102330.0,0.09770873]
[1737447673468,0.039137,102330.0,102320.0,0.00012323]
[1737447673677,0.47901604,102330.0,102320.0,0.00012323]
[1737447673871,0.83981604,102330.0,102320.0,0.00012323]
[1737447674468,0.77302652,102330.0,102320.0,0.00012323]
[1737447676079,0.144037,102330.0,102320.0,0.00012323]
[1737447676278,0.039137,102330.0,102320.0,0.45865105]
[1737447676584,0.67164925,102340.0,102320.0,0.60469005]
[1737447676790,0.039137,102330.0,102320.0,0.60469005]
[1737447676977,0.10592652,102330.0,102320.0,0.24389005]
[1737447677177,0.039137,102330.0,102320.0,0.24389005]
[1737447678080,0.039137,102330.0,102320.0,0.60469005]
[1737447678281,0.039137,102330.0,102320.0,0.56555105]
[1737447679171,0.67165025,102340.0,102320.0,0.60469205]
[1737447679374,0.67165025,102340.0,102330.0,0.1084]
[1737447679582,0.5259967,102340.0,102330.0,0.1084]
[1737447679784,0.1651967,102340.0,102330.0,0.1084]
[1737447680084,0.11681837,102340.0,102330.0,0.67285434]
[1737447680279,0.11681837,102340.0,102330.0,0.77325434]
[1737447681779,0.15595237,102340.0,102330.0,0.70646482]
[1737447683488,0.039134,102340.0,102330.0,0.94009306]
[1737447684983,0.039134,102340.0,102330.0,0.54015606]
[1737447685176,0.10592352,102340.0,102330.0,0.43975606]
[1737447685584,0.46672352,102340.0,102330.0,0.33135606]
[1737447685881,0.46672352,102340.0,102330.0,0.23362824]
[1737447686192,0.10592352,102340.0,102330.0,0.23362824]
[1737447686486,0.46672352,102340.0,102330.0,0.23362824]
[1737447687391,0.76833244,102340.0,102320.0,0.70145147]
[1737447687693,0.039137,102330.0,102320.0,0.83831074]
[1737447687874,0.30160692,102340.0,102320.0,0.83831074]
[1737447688790,0.26247192,102340.0,102330.0,0.46672652]
[1737447688991,0.26247192,102340.0,102330.0,0.399937]
[1737447689490,0.26247192,102340.0,102330.0,0.49766005]
[1737447690491,0.11681837,102340.0,102330.0,0.73128829]
[1737447692184,0.22274189,102340.0,102330.0,0.69215129]
[1737447693292,0.22274189,102340.0,102330.0,0.33135129]
[1737447694194,0.15595237,102340.0,102330.0,0.33135129]
[1737447695179,0.22274189,102340.0,102330.0,0.33135129]
[1737447695878,0.33134189,102340.0,102330.0,0.33135129]
[1737447696280,0.69214189,102340.0,102330.0,0.23362824]
[1737447696587,0.96363141,102340.0,102330.0,0.23362824]
[1737447696786,0.89684189,102340.0,102330.0,0.23362824]
[1737447697096,2.23684189,102340.0,102330.0,0.23362824]
[1737447698082,0.039137,102330.0,102320.0,0.23375147]
[1737447698391,0.10592652,102330.0,102320.0,0.23375147]
[1737447698895,0.46672652,102330.0,102320.0,0.23375147]
[1737447702595,0.61238007,102330.0,102320.0,0.00012323]
[1737447703793,0.62134774,102330.0,102320.0,0.00012323]
[1737447704196,0.68813726,102330.0,102320.0,0.00012323]
[1737447704896,0.039145,102310.0,102300.0,0.59442824]
[1737447705098,0.10593452,102310.0,102300.0,0.59442824]
[1737447705606,0.41963452,102310.0,102300.0,0.59442824]
[1737447705799,0.41971059,102310.0,102300.0,0.59442824]
[1737447706300,0.21161059,102310.0,102300.0,0.59442824]
[1737447706488,0.14482107,102310.0,102300.0,0.59442824]
[1737447707388,0.21161059,102310.0,102300.0,0.59442824]
[1737447707695,0.03922107,102310.0,102300.0,0.59442824]
[1737447707894,0.03922107,102310.0,102300.0,0.69217517]
[1737447708485,0.10601059,102310.0,102300.0,0.69217517]
[1737447708691,0.10601059,102310.0,102300.0,0.59442824]
[1737447709304,0.46681059,102310.0,102300.0,0.23362824]
[1737447709496,0.10601059,102310.0,102300.0,0.23362824]
[1737447710195,0.46681059,102310.0,102300.0,0.23362824]
[1737447710805,0.039149,102300.0,102290.0,0.59442824]
[1737447711097,0.10593852,102300.0,102290.0,0.69217517]
[1737447711498,0.46673852,102300.0,102290.0,0.33137517]
[1737447711703,0.57103852,102300.0,102290.0,0.33137517]
[1737447711891,0.63782804,102300.0,102290.0,0.33137517]
[1737447712093,0.63782804,102300.0,102290.0,0.23362824]
[1737447712094,0.77423852,102300.0,102290.0,0.23362824]
[1737447713405,0.84102804,102300.0,102290.0,0.23362824]
[1737447714693,0.039153,102290.0,102280.0,0.0001272]
[1737447714999,0.10594252,102290.0,102280.0,0.0001272]
[1737447716801,0.46674252,102290.0,102280.0,0.0001272]
[1737447717302,0.039157,102280.0,102270.0,0.23362824]
[1737447717498,0.46674652,102280.0,102270.0,0.23362824]
[1737447717699,0.10594652,102280.0,102270.0,0.23362824]
[1737447718004,0.46674652,102280.0,102270.0,0.23362824]
[1737447718204,0.10594652,102280.0,102270.0,0.23362824]
[1737447718818,0.10594652,102280.0,102260.0,0.500264]
[1737447719200,0.10594652,102280.0,102260.0,0.5980396]
[1737447719401,0.039157,102280.0,102270.0,0.3608]
[1737447720101,0.039157,102280.0,102270.0,0.45858038]
[1737447720697,0.10594652,102280.0,102270.0,0.45858038]
[1737447721109,0.10594652,102280.0,102270.0,0.3608]
[1737447721311,0.10594652,102280.0,102260.0,0.500264]
[1737447721516,0.10594952,102270.0,102260.0,0.4611]
[1737447721811,0.10594952,102270.0,102260.0,0.5588756]
[1737447722110,0.17273904,102270.0,102260.0,0.4585756]
[1737447722306,0.17273904,102270.0,102250.0,0.79012824]
[1737447722307,0.59470088,102270.0,102250.0,0.79012824]
[1737447722511,0.10595352,102260.0,102250.0,0.79012824]
[1737447724310,0.10595352,102260.0,102250.0,0.69342824]
[1737447724515,0.46675352,102260.0,102250.0,0.23362824]
[1737447725615,0.039168,102250.0,102240.0,0.46077326]
[1737447725911,0.10595752,102250.0,102240.0,0.55856798]
[1737447726508,0.10595752,102250.0,102240.0,0.45866798]
[1737447726812,0.46675752,102250.0,102240.0,7.326e-05]
[1737447727002,0.53354704,102250.0,102240.0,7.326e-05]
[1737447727313,0.46675752,102250.0,102240.0,0.00407326]
[1737447727818,0.46675752,102250.0,102240.0,0.00507326]
[1737447728206,0.10595752,102250.0,102240.0,0.00107326]
[1737447728516,0.10595752,102250.0,102240.0,0.36087326]
[1737447729014,0.10595752,102250.0,102240.0,0.45797326]
[1737447729609,0.039168,102250.0,102240.0,0.55577755]
[1737447729804,0.10595752,102250.0,102240.0,0.55577755]
[1737447730008,0.039168,102250.0,102240.0,0.55577755]
[1737447730509,0.039168,102250.0,102240.0,0.19497755]
[1737447731207,0.039168,102250.0,102240.0,0.55577755]
[1737447731819,0.10595752,102250.0,102240.0,0.55577755]
[1737447732304,0.46675752,102250.0,102240.0,7.326e-05]
[1737447733217,0.10595752,102250.0,102240.0,0.09787755]
[1737447734616,0.10595752,102250.0,102240.0,7.326e-05]
[1737447736620,0.53354704,102250.0,102240.0,7.326e-05]
[1737447737208,0.46675752,102250.0,102240.0,7.326e-05]
[1737447744218,0.10595752,102250.0,102240.0,7.326e-05]
[1737447744421,0.46675752,102250.0,102240.0,7.326e-05]
[1737447745019,0.53354704,102250.0,102240.0,7.326e-05]
[1737447745425,0.039176,102230.0,102220.0,0.40867522]
[1737447745616,0.46676552,102230.0,102220.0,0.40867522]
[1737447745811,0.82756552,102230.0,102220.0,0.40867522]
[1737447746426,0.8276558,102230.0,102220.0,0.40867522]
[1737447747722,2.1676558,102230.0,102220.0,0.40867522]
[1737447747927,2.3700558,102230.0,102220.0,0.40867522]
[1737447748324,0.03918,102220.0,102210.0,0.2913904]
[1737447748525,0.46676952,102220.0,102210.0,0.2913904]
[1737447750734,0.46676952,102220.0,102210.0,0.17556393]
[1737447751032,0.53355904,102220.0,102210.0,0.17556393]
[1737447751724,0.46676952,102220.0,102210.0,0.17556393]
[1737447751926,0.53355904,102220.0,102200.0,0.1]
[1737447752122,0.039187,102200.0,102190.0,0.64344116]
[1737447752334,0.46677652,102200.0,102190.0,0.64197336]
[1737447752627,0.73557366,102200.0,102190.0,0.64197336]
[1737447752826,0.73557366,102200.0,102190.0,0.62386282]
[1737447753032,0.73557366,102200.0,102180.0,1.03156915]
[1737447753229,0.53357004,102190.0,102180.0,1.03156915]
[1737447753424,1.87357004,102190.0,102180.0,1.03156915]
[1737447753828,1.80678052,102190.0,102180.0,1.03156915]
[1737447755429,0.46678052,102190.0,102180.0,1.03156915]
[1737447756034,0.46678052,102190.0,102180.0,0.09786172]
[1737447757030,0.10598052,102190.0,102180.0,0.45866172]
[1737447757227,0.06678952,102190.0,102170.0,0.3608]
[1737447757532,0.039195,102180.0,102170.0,0.45866172]
[1737447758827,0.04873332,102190.0,102170.0,0.49785872]
[1737447759027,0.04873332,102190.0,102180.0,0.3608]
[1737447759228,0.11552284,102190.0,102180.0,0.3608]
[1737447759418,0.20290399,102190.0,102180.0,0.3608]
[1737447759618,0.20290399,102190.0,102180.0,0.45867129]
[1737447760123,0.13611447,102190.0,102180.0,0.45867129]
[1737447760618,0.08738115,102190.0,102180.0,0.49786629]
[1737447761931,0.12657215,102190.0,102180.0,0.49786629]
[1737447762521,0.08738115,102190.0,102180.0,0.49786629]
[1737447762727,0.08738115,102190.0,102180.0,0.56465581]
[1737447763039,0.08738115,102190.0,102180.0,0.49786629]
[1737447763734,0.19346629,102200.0,102180.0,0.49786629]
[1737447763932,0.19346629,102200.0,102190.0,0.6603]
[1737447764136,0.12667677,102200.0,102190.0,0.6603]
[1737447764728,0.12667677,102200.0,102190.0,0.75816172]
[1737447764937,0.12667677,102200.0,102190.0,0.79735272]
[1737447765135,0.19346629,102200.0,102190.0,0.75816172]
[1737447766228,0.19346629,102200.0,102190.0,0.39736172]
[1737447770237,0.19346629,102200.0,102190.0,0.39793669]
[1737447770539,0.12667677,102200.0,102190.0,0.39793669]
[1737447771227,0.15601135,102200.0,102190.0,0.39793669]
[1737447772633,0.11682335,102200.0,102190.0,0.86471721]
[1737447772843,0.11682335,102200.0,102190.0,0.79792769]
[1737447774332,0.3691511,102210.0,102190.0,0.79792769]
[1737447774942,0.43594062,102210.0,102190.0,0.79792769]
[1737447775240,0.039187,102200.0,102190.0,0.79792769]
[1737447775443,0.03927793,102200.0,102190.0,0.79792769]
[1737447777137,0.03927793,102200.0,102190.0,0.80736591]
[1737447778851,0.10606745,102200.0,102190.0,0.79792769]
[1737447779344,0.03927793,102200.0,102190.0,0.79792769]
[1737447784552,0.18493148,102200.0,102190.0,0.79792769]
[1737447787249,0.14574448,102200.0,102190.0,0.86471721]
[1737447787443,0.21412345,102210.0,102200.0,0.039187]
[1737447787658,0.21412345,102210.0,102200.0,0.399987]
[1737447788164,0.21412345,102210.0,102200.0,0.49782957]
[1737447788344,0.21420071,102210.0,102200.0,0.49782957]
[1737447788545,0.28099023,102210.0,102200.0,0.49782957]
[1737447789053,0.21420071,102210.0,102200.0,0.49782957]
[1737447790353,0.28099023,102210.0,102200.0,0.49782957]
[1737447791859,0.03926126,102210.0,102200.0,0.49782957]
[1737447793145,0.10605078,102210.0,102200.0,0.49782957]
[1737447794048,0.03926126,102210.0,102200.0,0.49782957]
[1737447795755,0.21420071,102210.0,102200.0,0.49782957]
[1737447797059,0.28099023,102210.0,102200.0,0.49782957]
[1737447797946,0.21420071,102210.0,102200.0,0.49782957]
[1737447798347,0.20390355,102230.0,102200.0,0.90380609]
[1737447798555,0.20390355,102230.0,102220.0,0.78838952]
[1737447798749,0.15390355,102230.0,102220.0,0.82756952]
[1737447798956,0.10390355,102230.0,102220.0,1.07179081]
[1737447799149,0.10390355,102230.0,102220.0,1.1696238]
[1737447799350,0.1040202,102230.0,102220.0,1.10291018]
[1737447800255,0.17080972,102230.0,102220.0,0.45870889]
[1737447800463,0.67198572,102230.0,102220.0,7.59e-05]
[1737447800654,2.01198572,102230.0,102220.0,7.59e-05]
[1737447801458,0.039187,102200.0,102190.0,0.45794239]
[1737447802161,0.039187,102200.0,102190.0,0.55579453]
[1737447802862,0.10597652,102200.0,102190.0,0.55579453]
[1737447803453,0.46677652,102200.0,102190.0,0.09989453]
[1737447803659,0.75847652,102200.0,102190.0,0.00057497]
[1737447803964,0.691687,102200.0,102190.0,0.09842711]
[1737447804158,0.330887,102200.0,102190.0,0.13761811]
[1737447804460,0.39767652,102200.0,102190.0,0.09842711]
[1737447806068,0.40704128,102200.0,102190.0,0.09842711]
[1737447808065,0.76784128,102200.0,102190.0,0.00057497]
[1737447808264,0.76784128,102200.0,102190.0,0.45922711]
[1737447808265,0.235587,102200.0,102190.0,0.45922711]
[1737447808461,0.40962338,102210.0,102190.0,0.56520563]
[1737447808663,0.40962338,102210.0,102190.0,0.59211611]
[1737447808860,0.0939,102220.0,102200.0,0.06678952]
[1737447809064,0.03918,102220.0,102210.0,0.399983]
[1737447809461,0.10171665,102230.0,102210.0,0.52543687]
[1737447809763,0.00011665,102230.0,102220.0,0.39998]
[1737447809960,0.00011665,102230.0,102220.0,0.50218]
[1737447810374,0.00011665,102230.0,102220.0,0.60000821]
[1737447811368,0.10608217,102230.0,102220.0,0.60000821]
[1737447812170,0.03929265,102230.0,102220.0,0.60000821]
[1737447812473,0.04878519,102230.0,102220.0,0.60000821]
[1737447814078,0.03929265,102230.0,102220.0,0.60000821]
[1737447814991,0.00011665,102230.0,102220.0,0.60000821]
[1737447815365,0.03929265,102230.0,102220.0,0.60000821]
[1737447816368,0.03929265,102230.0,102220.0,0.56082821]
[1737447816704,0.46688217,102230.0,102220.0,0.09782821]
[1737447817391,0.03918,102220.0,102210.0,0.3608]
[1737447817687,0.10596952,102220.0,102210.0,0.45862342]
[1737447818669,0.10596952,102220.0,102200.0,0.3608]
[1737447818670,0.039183,102210.0,102200.0,0.3608]
[1737447818871,0.10597252,102210.0,102200.0,0.3608]
[1737447819071,0.10597252,102210.0,102190.0,0.40203259]
[1737447819575,0.10597252,102210.0,102190.0,0.49986558]
[1737447819980,0.039183,102210.0,102200.0,0.039187]
[1737447820778,0.039183,102210.0,102200.0,0.13703435]
[1737447821971,0.039183,102210.0,102200.0,0.09784735]
[1737447822481,0.039181,102220.0,102200.0,0.56462087]
[1737447822677,0.039181,102220.0,102210.0,0.2867]
[1737447823181,0.039181,102220.0,102210.0,0.325883]
[1737447823482,0.21439408,102220.0,102210.0,0.78452078]
[1737447824576,0.6419836,102220.0,102210.0,0.09783778]
[1737447824779,0.039187,102200.0,102190.0,0.67993259]
[1737447825082,0.039187,102200.0,102190.0,0.77776558]
[1737447826876,0.18527948,102200.0,102190.0,0.77776558]
[1737447830186,0.039187,102200.0,102190.0,0.77776558]
[1737447832788,0.04881374,102200.0,102190.0,0.77776558]
[1737447833489,0.3701193,102200.0,102190.0,0.77776558]
[1737447835383,0.43690882,102200.0,102190.0,0.37777558]
[1737447836687,0.26169574,102200.0,102190.0,0.37777558]
[1737447837780,0.26169574,102200.0,102190.0,0.09987558]
[1737447838890,0.62249574,102200.0,102190.0,0.00057497]
[1737447839495,0.62249574,102200.0,102190.0,0.01588756]
[1737447841397,0.47640326,102200.0,102190.0,0.01588756]
[1737447841900,0.039191,102190.0,102180.0,8.294e-05]
[1737447842099,0.46678052,102190.0,102180.0,0.01539627]
[1737447842399,1.80678052,102190.0,102180.0,0.01539627]
[1737447842599,0.40970593,102200.0,102180.0,0.49792908]
[1737447842789,0.04890593,102200.0,102180.0,0.5647186]
[1737447842990,0.11569545,102200.0,102180.0,0.5647186]
[1737447843185,0.11569545,102200.0,102180.0,0.45873508]
[1737447843501,0.04890593,102200.0,102190.0,0.039191]
[1737447843893,0.11569545,102200.0,102190.0,0.039191]
[1737447844096,0.11569545,102200.0,102190.0,0.13704314]
[1737447844404,0.11569545,102200.0,102190.0,0.09785214]
[1737447844405,0.29104499,102200.0,102190.0,0.09785214]
[1737447845100,0.22425547,102200.0,102190.0,0.09785214]
[1737447845601,0.29104499,102200.0,102190.0,0.09785214]
[1737447846401,0.039191,102190.0,102180.0,0.40007694]
[1737447846697,0.039191,102190.0,102180.0,0.49792908]
[1737447849097,0.22425347,102200.0,102190.0,0.039191]
[1737447849297,0.21462673,102200.0,102190.0,0.46678052]
[1737447849495,0.039184,102210.0,102190.0,0.42758952]
[1737447849701,0.039184,102210.0,102200.0,0.54867652]
[1737447849895,0.039184,102210.0,102200.0,0.481887]
[1737447850402,0.039184,102210.0,102200.0,0.57973435]
[1737447850607,0.10608271,102210.0,102200.0,0.4427]
[1737447850809,0.19178271,102210.0,102200.0,0.4427]
[1737447852010,0.19178271,102210.0,102200.0,0.3608]
[1737447852904,0.12499319,102210.0,102200.0,0.3608]
[1737447853104,0.12499319,102210.0,102200.0,0.49782957]
[1737447854612,0.12499319,102210.0,102200.0,0.13702957]
[1737447856709,0.12499319,102210.0,102200.0,0.49782957]
[1737447859009,0.03929319,102210.0,102200.0,0.49782957]
[1737447861116,0.00010919,102210.0,102200.0,0.49782957]
[1737447861417,0.28580225,102240.0,102210.0,0.039183]
[1737447861624,0.28580225,102240.0,102230.0,0.399976]
[1737447861922,0.32497425,102240.0,102230.0,0.399976]
[1737447862221,0.39184882,102240.0,102230.0,0.45864257]
[1737447863123,0.39184882,102240.0,102230.0,0.09784257]
[1737447863513,0.039176,102230.0,102220.0,0.560979]
[1737447863719,0.03918,102220.0,102210.0,0.481582]
[1737447864119,0.03918,102220.0,102210.0,0.57940542]
[1737447864723,0.03918,102220.0,102210.0,0.88769901]
[1737447864908,0.10596952,102220.0,102210.0,0.88769901]
[1737447865109,0.10596952,102220.0,102210.0,0.76691701]
[1737447865725,0.10596952,102220.0,102210.0,0.7516103]
[1737447866916,0.03918,102220.0,102210.0,0.7907933]
[1737447867117,0.48956148,102230.0,102210.0,0.7907933]
[1737447867520,0.48956148,102230.0,102210.0,0.85758282]
[1737447868133,0.48956148,102230.0,102210.0,0.7907933]
[1737447868635,0.10596952,102220.0,102210.0,0.4299933]
[1737447869017,0.10596952,102220.0,102210.0,0.3908103]
[1737447869225,0.46676952,102220.0,102210.0,0.29298688]
[1737447869526,0.039183,102210.0,102200.0,0.00146726]
[1737447869728,0.10597252,102210.0,102200.0,0.00146726]
[1737447872329,0.039187,102200.0,102190.0,0.59496844]
[1737447872521,0.54769138,102200.0,102190.0,0.23416844]
[1737447873620,0.54769138,102200.0,102180.0,8.294e-05]
[1737447873824,0.26678052,102190.0,102180.0,8.294e-05]
[1737447874034,0.62758052,102190.0,102180.0,8.294e-05]
[1737447875821,0.62758052,102190.0,102180.0,0.01539679]
[1737447877831,0.26678052,102190.0,102180.0,0.01539679]
[1737447878130,0.41312322,102190.0,102180.0,0.01539679]
[1737447878628,0.78365359,102190.0,102180.0,0.01539679]
[1737447881934,0.81264567,102190.0,102180.0,0.01539679]
[1737447884134,0.58505615,102190.0,102180.0,0.01539679]
[1737447884334,0.65184567,102190.0,102180.0,0.17729679]
[1737447885537,0.47651089,102190.0,102180.0,0.17729679]
[1737447885728,0.47651089,102190.0,102180.0,0.17729631]
[1737447886734,0.40972137,102190.0,102180.0,0.17729631]
[1737447886931,0.00973037,102190.0,102180.0,0.67515003]
[1737447887136,0.17544964,102200.0,102180.0,0.78534755]
[1737447887337,0.17544964,102200.0,102190.0,0.399988]
[1737447887529,0.17544964,102200.0,102190.0,0.48209089]
[1737447887737,0.17544964,102200.0,102190.0,0.4820868]
[1737447888030,0.17544964,102200.0,102190.0,0.57994852]
[1737447888239,0.20451946,102210.0,102200.0,0.039185]
[1737447888435,0.17492143,102210.0,102200.0,0.4820838]
[1737447888938,0.17492143,102210.0,102200.0,0.57993594]
[1737447889732,0.17492143,102210.0,102200.0,0.51314642]
[1737447890128,0.17492143,102210.0,102200.0,0.57993594]
[1737447891330,0.20451946,102230.0,102220.0,0.03918]
[1737447891636,0.4967387,102240.0,102230.0,0.039176]
[1737447891839,0.4967387,102240.0,102230.0,0.48206946]
[1737447892340,0.5359097,102240.0,102230.0,0.41527994]
[1737447892539,0.039171,102240.0,102230.0,0.5130938]
[1737447893143,0.039171,102240.0,102230.0,0.57988332]
[1737447894044,0.039171,102240.0,102230.0,0.1131178]
[1737447894342,0.121071,102240.0,102230.0,0.1131178]
[1737447894840,0.481871,102240.0,102230.0,0.1131178]
[1737447895144,0.54866052,102240.0,102230.0,0.01530618]
[1737447895351,0.18786052,102240.0,102230.0,0.01530618]
[1737447895542,0.121071,102240.0,102230.0,0.01530618]
[1737447895738,0.18786052,102240.0,102230.0,0.01530618]
[1737447895941,0.54866052,102240.0,102230.0,0.01530618]
[1737447896243,0.039179,102220.0,102210.0,0.3608]
[1737447896633,0.039179,102220.0,102210.0,0.45861386]
[1737447898040,0.10596852,102220.0,102210.0,0.09781386]
[1737447899146,0.399979,102220.0,102210.0,0.09781386]
[1737447899346,0.480579,102220.0,102210.0,0.09781386]
[1737447900344,0.039183,102210.0,102200.0,0.1757073]
[1737447900650,0.039183,102210.0,102200.0,0.16462251]
[1737447900847,0.23640204,102220.0,102200.0,0.56460951]
[1737447901043,0.23640204,102220.0,102210.0,0.06678952]
[1737447901546,0.23640204,102220.0,102200.0,0.46677652]
[1737447901744,0.23640204,102220.0,102210.0,0.09784257]
[1737447901950,0.23640204,102220.0,102200.0,0.46677652]
[1737447902249,0.30319156,102220.0,102210.0,0.09783299]
[1737447902742,0.30319156,102220.0,102200.0,0.399987]
[1737447902948,0.30319156,102220.0,102210.0,0.09783299]
[1737447903144,0.30319156,102220.0,102200.0,0.399987]
[1737447903350,0.30319156,102220.0,102210.0,0.09783778]
[1737447903551,0.23640204,102220.0,102210.0,0.09783778]
[1737447903750,0.23640204,102220.0,102200.0,0.46677652]
[1737447903944,0.23640204,102220.0,102210.0,0.09783778]
[1737447904346,0.23640204,102220.0,102200.0,0.46677652]
[1737447904543,0.23640204,102220.0,102210.0,0.09783778]
[1737447904748,0.23640204,102220.0,102200.0,0.46677652]
[1737447905143,0.23640204,102220.0,102200.0,0.5646143]
[1737447905643,0.08744107,102210.0,102200.0,0.5646143]
[1737447906349,0.08744107,102210.0,102200.0,0.49782478]
[1737447907452,0.12662407,102210.0,102200.0,0.49782478]
[1737447908146,0.12662407,102210.0,102200.0,0.5646143]
[1737447908545,0.12662407,102210.0,102200.0,0.49782478]
[1737447908750,0.12662407,102210.0,102200.0,0.45863778]
[1737447908951,0.27931359,102210.0,102200.0,0.45863778]
[1737447909351,0.21252407,102210.0,102200.0,0.09783778]
[1737447909747,0.21252407,102210.0,102190.0,0.3608]
[1737447909748,0.27931359,102210.0,102190.0,0.3608]
[1737447909943,0.03919,102190.0,102180.0,0.36088294]
[1737447910144,0.10597952,102190.0,102180.0,0.36088294]
[1737447910448,0.12149,102190.0,102180.0,0.45873029]
[1737447910751,0.12149,102190.0,102180.0,0.36088294]
[1737447910951,0.18827952,102190.0,102180.0,0.36088294]
[1737447911139,0.12149,102190.0,102180.0,0.42767246]
[1737447911346,0.12149,102190.0,102180.0,0.56472818]
[1737447912152,0.12149,102190.0,102180.0,0.49793866]
[1737447912344,0.12149,102190.0,102180.0,0.56472818]
[1737447912539,0.12149,102190.0,102180.0,0.49793866]
[1737447912949,0.12149,102190.0,102180.0,0.56472818]
[1737447913144,0.0823,102190.0,102180.0,0.56472818]
[1737447913753,0.118387,102200.0,102190.0,0.03919]
[1737447913951,0.43939386,102200.0,102190.0,0.46677952]
[1737447914151,0.32100686,102200.0,102190.0,0.46677952]
[1737447914454,0.27100686,102200.0,102190.0,0.65033166]
[1737447914654,0.22100686,102200.0,102190.0,0.65033166]
[1737447915040,0.22100686,102200.0,102190.0,0.49784214]
[1737447915248,0.26019286,102200.0,102190.0,0.45865214]
[1737447915445,0.26019286,102200.0,102190.0,0.56463166]
[1737447917754,0.22100686,102200.0,102190.0,0.56463166]
[1737447918146,0.20471264,102200.0,102190.0,0.52544166]
[1737447918350,0.20471264,102200.0,102190.0,0.56463166]
[1737447920752,0.20471264,102200.0,102190.0,0.86463166]
[1737447920952,0.20471264,102200.0,102190.0,0.62465223]
[1737447921153,0.20471264,102200.0,102190.0,0.92465223]
[1737447921455,0.17522931,102220.0,102210.0,0.039183]
[1737447921652,0.17522931,102220.0,102210.0,0.94318261]
[1737447921953,0.67660007,102250.0,102240.0,0.039171]
[1737447922150,0.35999565,102250.0,102240.0,0.82756052]
[1737447922549,0.35999565,102250.0,102240.0,0.92539351]
[1737447923047,0.20419565,102250.0,102240.0,0.99218303]
[1737447926260,0.11396,102270.0,102240.0,1.16789033]
[1737447926461,0.11396,102270.0,102260.0,0.46675252]
[1737447926970,0.0748,102270.0,102260.0,0.82755252]
[1737447927163,0.0748,102270.0,102260.0,0.92535681]
[1737447927553,0.0748,102270.0,102260.0,0.85856729]
[1737447927752,0.11396,102270.0,102260.0,0.85856729]
[1737447928263,0.18074952,102270.0,102260.0,0.81940429]
[1737447928447,0.18074952,102270.0,102260.0,0.7216]